[Event "Romanian Superliga 2024"]
[Site "Mamaia"]
[Date "2024.09.30"]
[Round "3.4"]
[White "Cosma, Ioan"]
[Black "Tampea, Radu"]
[Result "0-1"]
[ECO "D30"]
[WhiteElo "2295"]
[BlackElo "2226"]
[Annotator "RC"]
[PlyCount "136"]
[EventDate "2024.09.26"]
[EventType "team-tourn"]
[EventCountry "ROU"]
[SourceTitle "playchess.com"]
[Source "ChessBase"]
[SourceQuality "1"]
[TimeControl "40/5400+30:1800+30"]

1. d4 {[%emt 0:00:09]} d5 {[%emt 0:00:24]} 2. c4 {[%emt 0:00:17]} e6 {[%emt 0:00:16]} 3. Nf3 {[%emt 0:00:23]} a6 {[%emt 0:00:17]} 4. Nbd2 {[%emt 0:00:51]} dxc4 {[%emt 0:00:25]} 5. Nxc4 {[%emt 0:00:10]} b5 {[%emt 0:00:25]} 6. Nce5 {[%emt 0:00:16]} Bb7 {[%emt 0:00:12]} 7. g3 {[%emt 0:01:44]} Nd7 {[%emt 0:00:23]} 8. Nxd7 {[%emt 0:04:09]} Bb4+ {[%emt 0:01:41]} 9. Bd2 {[%emt 0:00:45]} Bxd2+ {[%emt 0:00:05]} 10. Qxd2 {[%emt 0:00:04]} Bxf3 {[%emt 0:00:05]} 11. exf3 {[%emt 0:00:20]} Qxd7 {[%emt 0:00:05]} 12. a4 {[%emt 0:02:23]} Rb8 {[%emt 0:12:02]} 13. axb5 {[%emt 0:03:34]} axb5 {[%emt 0:00:05]} 14. Qg5 {[%emt 0:13:32]} f5 {[%emt 0:29:11]} 15. Bg2 {[%emt 0:11:07]} Nf6 {[%emt 0:03:35]} 16. O-O {[%emt 0:00:34]} O-O {[%emt 0:00:07]} 17. Qe3 {[%emt 0:01:16]} Rfd8 {[%emt 0:15:51]} 18. f4 {[%emt 0:01:18]} Rb6 {[%emt 0:02:02]} 19. Qe5 {[%emt 0:05:43]} Qxd4 {[%emt 0:12:20]} 20. Qxc7 {[%emt 0:00:24]} Rbd6 {[%emt 0:00:08]} 21. b3 {[%emt 0:07:19]} b4 {[%emt 0:04:16]} 22. Bf3 {[%emt 0:11:16]} Nd5 {[%emt 0:02:53]} 23. Bxd5 {[%emt 0:08:19]} Qxd5 {[%emt 0:00:02]} 24. Qc2 {[%emt 0:03:14]} Rc6 {[%emt 0:04:07]} 25. Qb2 {[%emt 0:08:35]} Rc3 {[%emt 0:00:31]} 26. Rab1 {[%emt 0:00:55]} h5 {[%emt 0:05:00]} 27. Qe2 {[%emt 0:01:53]} Rxb3 {[%emt 0:03:36]} 28. Rbd1 {[%emt 0:07:45]} Rd3 {[%emt 0:00:04]} 29. Rxd3 {[%emt 0:00:04]} Qxd3 {[%emt 0:00:01]} 30. Qxe6+ {[%emt 0:00:07]} Kh7 {[%emt 0:00:03]} 31. Qe3 {[%emt 0:04:11]} Qxe3 {[%emt 0:03:54]} 32. fxe3 {[%emt 0:00:02]} Rb8 {[%emt 0:00:37]} 33. Rb1 {[%emt 0:00:12]} Kg6 {[%emt 0:00:05]} 34. Kf2 {[%emt 0:00:31]} Kf6 {[%emt 0:00:07]} 35. Ke2 {[%emt 0:00:31]} Ke6 {[%emt 0:00:03]} 36. Kd3 {[%emt 0:00:21]} Kd5 {[%emt 0:00:04]} 37. Kc2 {[%emt 0:02:51]} Ke4 {[%emt 0:00:38]} 38. Rd1 {[%emt 0:00:23]} b3+ {[%emt 0:00:31]} 39. Kb2 {[%emt 0:00:04]} Rb6 {[%emt 0:00:15]} 40. Rd7 {[%emt 0:00:00]} g6 {[%emt 0:00:00]} 41. Re7+ {[%emt 0:00:27]} Kf3 {[%emt 0:00:18]} 42. Re5 {[%emt 0:02:00]} Kg2 {[%emt 0:00:17]} 43. e4 {[%emt 0:00:05]} fxe4 {[%emt 0:00:04]} 44. Rxe4 {[%emt 0:00:04]} Kxh2 {[%emt 0:00:04]} 45. Re3 {[%emt 0:00:37]} Kh3 {[%emt 0:35:51]} 46. Rd3 {[%emt 0:32:45]} Kg4 {[%emt 0:00:30]} 47. Rc3 {[%emt 0:00:30]} h4 {[%emt 0:00:00]} 48. gxh4 {[%emt 0:00:00]} Kxh4 {[%emt 0:00:00]} 49. Rc1 {[%emt 0:00:00]} Kg4 {[%emt 0:00:00]} 50. Rf1 {[%emt 0:00:00]} Kf5 {[%emt 0:00:00]} 51. Rf2 {[%emt 0:00:00]} Rb4 {[%emt 0:00:00]} 52. Rf3 {[%emt 0:00:00]} Rxf4 {[%emt 0:00:00]} 53. Rxb3 {[%emt 0:00:00]} Rc4 {[%emt 0:00:00]} 54. Rf3+ {[%emt 0:00:00]} Kg4 {[%emt 0:00:00]} 55. Rf1 {[%emt 0:00:00]} g5 {[%emt 0:00:00]} 56. Rg1+ {[%emt 0:00:00]} Kf5 {[%emt 0:00:00]} 57. Kb3 {[%emt 0:00:00]} Rc8 {[%emt 0:00:00]} 58. Rf1+ {[%emt 0:00:00]} Ke4 {[%emt 0:00:00]} 59. Rg1 {[%emt 0:00:00]} Rg8 {[%emt 0:00:00]} 60. Kc2 {[%emt 0:00:00]} g4 {[%emt 0:00:00]} 61. Kd2 {[%emt 0:00:00]} Kf3 {[%emt 0:00:00]} 62. Ke1 {[%emt 0:00:00]} Re8+ {[%emt 0:00:00]} 63. Kd2 {[%emt 0:00:00]} g3 {[%emt 0:00:00]} 64. Rf1+ {[%emt 0:00:00]} Kg2 {[%emt 0:00:00]} 65. Rf7 {[%emt 0:00:00]} Kg1 {[%emt 0:00:00]} 66. Rf6 {[%emt 0:00:00]} g2 {[%emt 0:00:00]} 67. Rf7 {[%emt 0:00:00]} Re4 {[%emt 0:00:00]} 68. Kd3 {[%emt 0:00:00]} Rh4 {[%emt 0:00:00]} 0-1

[Event "Romanian Superliga 2024"]
[Site "Mamaia"]
[Date "2024.09.30"]
[Round "3.5"]
[White "Padurariu, Mihai-Edward"]
[Black "Itkis, Boris"]
[Result "0-1"]
[ECO "C28"]
[WhiteElo "2233"]
[BlackElo "2279"]
[Annotator "RC"]
[PlyCount "90"]
[EventDate "2024.09.26"]
[EventType "team-tourn"]
[EventCountry "ROU"]
[SourceTitle "playchess.com"]
[Source "ChessBase"]
[SourceQuality "1"]
[TimeControl "40/5400+30:1800+30"]

1. e4 {[%emt 0:00:10]} e5 {[%emt 0:00:07]} 2. Bc4 {[%emt 0:00:47]} Nf6 {[%emt 0:00:10]} 3. d3 {[%emt 0:01:11]} Nc6 {[%emt 0:00:13]} 4. Nc3 {[%emt 0:03:25]} Bb4 {[%emt 0:00:32]} 5. Nge2 {[%emt 0:01:01]} d5 {[%emt 0:00:37]} 6. exd5 {[%emt 0:00:09]} Nxd5 {[%emt 0:00:06]} 7. O-O {[%emt 0:00:51]} Be6 {[%emt 0:00:22]} 8. Bxd5 {[%emt 0:08:07]} Bxd5 {[%emt 0:00:08]} 9. f4 {[%emt 0:00:21]} f6 {[%emt 0:04:39]} 10. fxe5 {[%emt 0:09:23]} Nxe5 {[%emt 0:00:08]} 11. d4 {[%emt 0:15:34]} Ng6 {[%emt 0:03:21]} 12. Nxd5 {[%emt 0:02:46]} Qxd5 {[%emt 0:00:07]} 13. a3 {[%emt 0:22:21]} Be7 {[%emt 0:02:10]} 14. Qd3 {[%emt 0:01:33]} Rd8 {[%emt 0:04:14]} 15. b3 {[%emt 0:02:12]} O-O {[%emt 0:03:19]} 16. c4 {[%emt 0:01:23]} Qd7 {[%emt 0:00:04]} 17. Bb2 {[%emt 0:00:58]} c6 {[%emt 0:00:04]} 18. Qf3 {[%emt 0:02:10]} Bd6 {[%emt 0:03:54]} 19. Rae1 {[%emt 0:06:49]} Rfe8 {[%emt 0:02:22]} 20. Nc3 {[%emt 0:00:38]} Re7 {[%emt 0:04:03]} 21. Ne4 {[%emt 0:05:54]} Rde8 {[%emt 0:00:33]} 22. Nxd6 {[%emt 0:01:32]} Qxd6 {[%emt 0:01:03]} 23. Rxe7 {[%emt 0:00:18]} Rxe7 {[%emt 0:00:45]} 24. g3 {[%emt 0:07:20]} Nf8 {[%emt 0:00:39]} 25. Rd1 {[%emt 0:03:05]} Ne6 {[%emt 0:01:52]} 26. h4 {[%emt 0:00:04]} Nc7 {[%emt 0:01:32]} 27. Bc1 {[%emt 0:01:08]} Rd7 {[%emt 0:14:49]} 28. Kg2 {[%emt 0:00:59]} Qe7 {[%emt 0:07:09]} 29. Bb2 {[%emt 0:01:30]} Qe6 {[%emt 0:00:36]} 30. Rd2 {[%emt 0:00:43]} Qd6 {[%emt 0:07:28]} 31. Re2 {[%emt 0:00:24]} Re7 {[%emt 0:00:27]} 32. Rxe7 {[%emt 0:00:34]} Qxe7 {[%emt 0:00:01]} 33. Kf2 {[%emt 0:00:26]} Ne8 {[%emt 0:04:18]} 34. Qf4 {[%emt 0:00:58]} Nd6 {[%emt 0:00:44]} 35. Kf3 {[%emt 0:00:20]} h5 {[%emt 0:01:40]} 36. Bc3 {[%emt 0:00:37]} Qd7 {[%emt 0:00:55]} 37. Kg2 {[%emt 0:00:28]} Qe6 {[%emt 0:01:43]} 38. Kf3 {[%emt 0:00:26]} b5 {[%emt 0:01:40]} 39. Bb4 {[%emt 0:00:41]} bxc4 {[%emt 0:02:46]} 40. bxc4 {[%emt 0:00:00]} Nxc4 {[%emt 0:00:00]} 41. Qe4 {[%emt 0:28:26]} Kf7 {[%emt 0:01:03]} 42. Qd3 {[%emt 0:00:45]} Qd5+ {[%emt 0:00:17]} 43. Kf2 {[%emt 0:00:21]} Ne5 {[%emt 0:00:54]} 44. Qc3 {[%emt 0:00:54]} Ng4+ {[%emt 0:03:36]} 45. Kg1 {[%emt 0:00:19]} Qe4 {[%emt 0:00:26]} 0-1

[Event "Romanian Superliga 2024"]
[Site "Mamaia"]
[Date "2024.09.30"]
[Round "3.6"]
[White "Negrean, Andrei"]
[Black "Radu, David Cr."]
[Result "0-1"]
[ECO "D30"]
[WhiteElo "2267"]
[BlackElo "2159"]
[Annotator "RC"]
[PlyCount "84"]
[EventDate "2024.09.26"]
[EventType "team-tourn"]
[EventCountry "ROU"]
[SourceTitle "playchess.com"]
[Source "ChessBase"]
[SourceQuality "1"]
[TimeControl "40/5400+30:1800+30"]

1. d4 {[%emt 0:00:07]} d5 {[%emt 0:02:09]} 2. c4 {[%emt 0:00:16]} e6 {[%emt 0:00:06]} 3. Nf3 {[%emt 0:00:30]} a6 {[%emt 0:00:26]} 4. Nbd2 {[%emt 0:00:44]} dxc4 {[%emt 0:00:30]} 5. Nxc4 {[%emt 0:00:15]} b5 {[%emt 0:00:40]} 6. Nce5 {[%emt 0:00:27]} Bb7 {[%emt 0:00:39]} 7. a4 {[%emt 0:02:44]} Nd7 {[%emt 0:10:09]} 8. e3 {[%emt 0:04:08]} c6 {[%emt 0:08:46]} 9. Be2 {[%emt 0:08:31]} Bd6 {[%emt 0:11:39]} 10. O-O {[%emt 0:06:10]} Ngf6 {[%emt 0:04:01]} 11. Nxd7 {[%emt 0:14:13]} Qxd7 {[%emt 0:00:34]} 12. Qc2 {[%emt 0:02:21]} Rc8 {[%emt 0:09:25]} 13. e4 {[%emt 0:03:18]} c5 {[%emt 0:05:56]} 14. d5 {[%emt 0:04:10]} Bb8 {[%emt 0:09:07]} 15. axb5 {[%emt 0:04:47]} axb5 {[%emt 0:02:57]} 16. Bg5 {[%emt 0:10:40]} exd5 {[%emt 0:03:03]} 17. Bxf6 {[%emt 0:00:55]} gxf6 {[%emt 0:00:06]} 18. exd5 {[%emt 0:00:49]} O-O {[%emt 0:01:15]} 19. Rfd1 {[%emt 0:03:40]} c4 {[%emt 0:02:14]} 20. Rd4 {[%emt 0:01:02]} Rfe8 {[%emt 0:02:43]} 21. Rh4 {[%emt 0:04:51]} f5 {[%emt 0:00:54]} 22. Rd1 {[%emt 0:08:36]} Rc5 {[%emt 0:02:02]} 23. Bf1 {[%emt 0:14:37]} Rxd5 {[%emt 0:03:29]} 24. Rxd5 {[%emt 0:00:06]} Qxd5 {[%emt 0:05:51]} 25. Rh5 {[%emt 0:00:45]} Re4 {[%emt 0:07:28]} 26. Rg5+ {[%emt 0:02:35]} Kf8 {[%emt 0:00:01]} 27. Qc3 {[%emt 0:00:26]} Be5 {[%emt 0:04:06]} 28. Nxe5 {[%emt 0:00:21]} Rxe5 {[%emt 0:00:58]} 29. Qh3 {[%emt 0:01:05]} Re1 {[%emt 0:01:28]} 30. Qc3 {[%emt 0:01:34]} Qe5 {[%emt 0:02:16]} 31. Qd2 {[%emt 0:00:37]} Bd5 {[%emt 0:00:31]} 32. Rg3 {[%emt 0:00:27]} f4 {[%emt 0:00:13]} 33. Ra3 {[%emt 0:00:37]} Qe4 {[%emt 0:00:38]} 34. Qb4+ {[%emt 0:00:32]} Kg7 {[%emt 0:00:20]} 35. Qc3+ {[%emt 0:00:23]} f6 {[%emt 0:00:42]} 36. Ra7+ {[%emt 0:00:10]} Kg6 {[%emt 0:00:12]} 37. Qh3 {[%emt 0:00:33]} h5 {[%emt 0:00:13]} 38. Rc7 {[%emt 0:00:56]} Qe2 {[%emt 0:00:45]} 39. g3 {[%emt 0:00:00]} Qf3 {[%emt 0:00:00]} 40. Rg7+ {[%emt 0:00:00]} Kxg7 {[%emt 0:00:00]} 41. Qd7+ {[%emt 0:01:47]} Kh6 {[%emt 0:00:44]} 42. Qxd5 {[%emt 0:00:44]} Qxd5 {[%emt 0:32:14]} 0-1

[Event "Romanian Superliga 2024"]
[Site "Mamaia"]
[Date "2024.09.30"]
[Round "3.7"]
[White "Theodorou, Nikolas"]
[Black "Pranav Vijay"]
[Result "1/2-1/2"]
[ECO "E07"]
[WhiteElo "2619"]
[BlackElo "2252"]
[Annotator "TA"]
[PlyCount "115"]
[EventDate "2024.09.26"]
[EventType "team-tourn"]
[EventCountry "ROU"]
[SourceTitle "playchess.com"]
[Source "ChessBase"]
[SourceQuality "1"]
[TimeControl "40/5400+30:1800+30"]

{[%evp 14,115,45,0,0,0,0,0,0,0,0,0,0,0,3,4,15,7,23,13,0,0,0,0,-21,-19,13,13,38,-2,89,94,55,49,41,56,85,102,90,9,95,82,67,83,106,46,59,42,27,59,20,0,61,-13,35,0,0,0,0,0,0,0,0,0,0,0,0,0,0,0,0,0,0,0,0,0,0,0,0,0,0,0,0,0,0,0,0,0,0,0,162,117,162,162,205,169,198,207,237,0,0,0,0,-40]} 1. d4 {[%emt 0:00:02]} Nf6 {[%emt 0:00:13]} 2. c4 {[%emt 0:00:08]} e6 {[%emt 0:00:07]} 3. Nf3 {[%emt 0:00:06]} d5 {[%emt 0:00:08]} 4. Nc3 {[%emt 0:00:16]} Nbd7 {[%emt 0:00:08]} 5. g3 {[%emt 0:01:41]} Be7 {[%emt 0:00:08]} 6. Bg2 {[%emt 0:00:30]} O-O {[%emt 0:00:10]} 7. Ne5 {[%emt 0:00:04] 7.Qd3 zet een nieuwe trend.} c6 {[%emt 0:03:13]} 8. O-O {[%emt 0:00:05]} Nxe5 $1 {[%emt 0:05:00] E07: Gesloten Catalaans: Hoofdvariant (5 Pf3 0-0 6 0-0 Pbd7).} 9. dxe5 {[%emt 0:00:04]} Nd7 {[%emt 0:00:18] OK} 10. cxd5 {[%emt 0:00:06] OK} cxd5 {[%emt 0:07:39]} 11. e4 {[%emt 0:00:11] OK} dxe4 {[%emt 0:02:11] OK} 12. Qh5 {[%emt 0:00:25] OK} Qa5 {[%emt 0:04:22] OK} 13. Nxe4 {[%emt 0:23:58] Beste (Gemakkelijk)} Qxe5 {[%emt 0:05:29] OK} 14. Qe2 {[%emt 0:02:27] OK} Nf6 {[%emt 0:05:02]} 15. Bf4 {[%emt 0:02:26] Beste} Qa5 {[%emt 0:00:26] OK} 16. Nxf6+ $146 {[%emt 0:20:57]} ({Predecessor:} 16. Rfd1 e5 17. Bd2 Qb6 18. Be3 Qe6 19. Rac1 Bd7 20. Nxf6+ Bxf6 21. Bxb7 Rab8 22. Rc7 {1-0 Van Foreest,J (2714)-Haria,R (2499) Bundesliga 2122 2022 (11.3)}) 16... Bxf6 {[%emt 0:00:11]} 17. Rfd1 {[%emt 0:00:05][%cal Bf1d1,Bd1c1,Bc1c7][%mdl 32] Voorkomt Bd4. EV=10.42. OK} Re8 {[%emt 0:22:14] Beste} 18. a4 {[%emt 0:08:52] OK} e5 {[%emt 0:06:31][%cal Oe5e4] OK} 19. Bd2 {[%emt 0:05:26]} Qc7 {[%emt 0:09:57][%cal Oe5e4] Onnauwkeurig} 20. Qb5 {[%emt 0:04:14][%cal Rb5e8]} Bg4 {[%emt 0:05:43][%cal Bc8g4,Bg4f3,Bf3h1][%mdl 32] EV=10.26. Goes to f3 (dbg)). OK} 21. Ba5 {[%emt 0:07:24] [#] Onnauwkeurig} b6 {[%emt 0:08:13] Maintains equality. Fout (0.9)} 22. Rdc1 $1 $16 {[%emt 0:00:47] Sterk} ({Speel niet} 22. Bxa8 Rxa8 23. Rdc1 Qb7 $11) 22... Qd8 {[%emt 0:00:10]} 23. Bxa8 {[%emt 0:00:32] Beste (Gemakkelijk)} Qxa8 {[%emt 0:00:05]} 24. Be1 {[%emt 0:00:03] OK} Bf3 {[%emt 0:02:46] Onnauwkeurig} 25. Rc7 {[%emt 0:01:28][%cal Oc7a7] Hoopt vervolgens op Rxa7! OK} Rd8 {[%emt 0:02:27] Beste} {Optimal for White is} 26. h4 {[%emt 0:03:49] Fout (0.8)} (26. Bb4 $16) 26... h5 {[%emt 0:03:30] Keeps the game even. Fout (0.9)} (26... h6 $1 $11) 27. Rac1 {[%emt 0:01:57] OK} Bh1 {[%emt 0:02:57]} 28. Qf1 {[%emt 0:00:10][%cal Oe1d2] Afleidend Qg2+. Actief tegenspel! OK} Bf3 {[%emt 0:01:06] OK} {Better for White is} 29. Qc4 {[%emt 0:04:19] Fout (0.6)} (29. Kh2 $16) 29... Bd5 $14 {[%emt 0:00:07] Beste (Gemakkelijk)} 30. Qa6 {[%emt 0:00:06][%cal Oc7c8]} Bh1 {[%emt 0:00:16] Beste (Gemakkelijk)} 31. Qf1 {[%emt 0:00:03] Stopt Qg2+. OK} Bf3 {[%emt 0:00:23] OK} 32. Bc3 {[%emt 0:02:12]} {Black should consider} a5 {[%emt 0:02:16] Fout (0.6)} (32... Qe4 $11) {White should consider} 33. Kh2 {[%emt 0:02:07] Fout (0.7)} (33. Qc4 $14) 33... Qb8 {[%emt 0:00:41] [#] is preferable. Fout (0.5)} (33... Qe4 $11) 34. Bd2 $1 {[%emt 0:00:11] Onnauwkeurig} Rxd2 {[%emt 0:01:40] Beste (Gemakkelijk)} 35. Rc8+ {[%emt 0:00:08] Beste (Gemakkelijk)} Qxc8 $1 {[%emt 0:00:05] Sterk} 36. Rxc8+ {[%emt 0:00:04]} Kh7 {[%emt 0:00:03][%cal Od2d1] ...Rd1! is de sterke dreiging. Beste (Gemakkelijk)} 37. Qb1+ {[%emt 0:04:36] OK} e4 {[%emt 0:01:43] OK} 38. Rc2 {[%emt 0:00:02] Beste (Gemakkelijk)} Rd3 {[%emt 0:00:15] OK} (38... Rd1 $5 39. Rc1 $8 Rd2 $11) 39. Rc1 {[%emt 0:02:51] OK} Rd2 {[%emt 0:01:05][%csl LRb2,LRf2] OK} 40. Rc2 {[%emt 0:00:00] Beste (Gemakkelijk)} Rd3 {[%emt 0:00:00]} (40... Rd1 $5 41. Rc1 $8 Rd2 42. Rc2 $11) 41. Rc1 {[%emt 0:02:01] OK} Bd4 {[%emt 0:06:39]} 42. Qc2 {[%emt 0:01:39] OK} Bc5 {[%emt 0:00:23] Een sterk loperpaar. OK} 43. Qc4 {[%emt 0:02:31]} Rd2 {[%emt 0:06:49] OK} 44. Rc2 {[%emt 0:02:51] Beste (Gemakkelijk)} Rd1 {[%emt 0:01:02][%csl Gf3][%cal Rd1h1] OK} 45. Rc1 $1 {[%emt 0:00:03] En nu zou Rxd1 winnen. Sterk} Rxc1 {[%emt 0:02:43]} (45... Rd2 $5 46. Rc2 $8 Rd4 $11 (46... Rd1 47. Rc1 $11)) 46. Qxc1 {[%emt 0:00:11] met als doel voor Kg1.} Bxf2 {[%emt 0:00:03] OK} 47. Qf4 {[%emt 0:02:47]} f6 {[%emt 0:03:27] OK} 48. Qf5+ {[%emt 0:02:05] OK} Kg8 {[%emt 0:00:33] OK} 49. Qd5+ {[%emt 0:04:03] OK} Kf8 {[%emt 0:00:08]} 50. Qb7 {[%emt 0:02:04]} Bc5 {[%emt 0:06:03]} 51. b4 {[%emt 0:02:25]} Bxb4 $2 {[%emt 0:00:20] and Black is secure. Verliest partij (1.6)} (51... axb4 $11 52. a5 b3) 52. Qxb6 {[%emt 0:00:02]} Kf7 {[%emt 0:00:07] Onnauwkeurig} 53. Kg1 {[%emt 0:00:29] OK} Kg6 {[%emt 0:01:30]} 54. Qc6 {[%emt 0:02:05]} Be1 {[%emt 0:01:09] OK} 55. Qe8+ {[%emt 0:01:28] OK} Kh7 {[%emt 0:00:10] [#]} {Wit's turn} 56. g4 {[%emt 0:00:31] Gemiste overwinning (2.4)} hxg4 $11 {[%emt 0:01:40] Beste (Gemakkelijk)} 57. Qh5+ {[%emt 0:01:33] OK} Kg8 {[%emt 0:00:02]} 58. Qe8+ {[%emt 0:00:05] Blunder waarde: Wit=0.17 (erg precies) /Zwart=0.16 (erg precies) . Onnauwkeurig.  Verliest partij:   	---       	Zwart=1      Gemiste overwinning: 	Wit=1      	---        Fout:        	Wit=3      	Zwart=4      Onnauwkeurig:    	Wit=3      	Zwart=3      OK:         	Wit=20     	Zwart=19     Beste:        	Wit=7      	Zwart=7      Sterk:        	Wit=2      	Zwart=1} 1/2-1/2

[Event "Romanian Superliga 2024"]
[Site "Mamaia"]
[Date "2024.09.30"]
[Round "3.8"]
[White "Erdos, Viktor"]
[Black "Kourkoulos-Arditis, Stamatis"]
[Result "1/2-1/2"]
[ECO "D02"]
[WhiteElo "2538"]
[BlackElo "2570"]
[Annotator "TA"]
[PlyCount "72"]
[EventDate "2024.09.26"]
[EventType "team-tourn"]
[EventCountry "ROU"]
[SourceTitle "playchess.com"]
[Source "ChessBase"]
[SourceQuality "1"]
[TimeControl "40/5400+30:1800+30"]

{[%evp 9,72,6,-20,-41,0,0,-8,0,0,27,59,9,13,-10,5,-46,31,6,16,0,6,13,13,-52,-22,-106,35,52,46,50,74,13,90,0,33,21,13,20,39,0,25,0,0,0,0,0,0,0,0,0,0,46,46,0,0,0,0,0,0,0,0,0,0,0,0]} 1. d4 {[%emt 0:00:03]} Nf6 {[%emt 0:00:04]} 2. Nf3 {[%emt 0:00:05]} g6 {[%emt 0:00:05]} 3. Nbd2 {[%emt 0:00:04]} d5 {[%emt 0:00:21]} 4. e3 {[%emt 0:00:07]} Bg7 {[%emt 0:00:04]} 5. c4 {[%emt 0:00:08]} c5 {[%emt 0:01:24]} 6. cxd5 {[%emt 0:01:25] D02: 1 d4 d5 2 Pf3 Zijvarianten, inclusief 2...Pf6 3 g3 en 2...Pf6 3 Lf4.} cxd4 $146 {[%emt 0:03:35] OK} ({Predecessor:} 6... Nxd5 7. e4 Nc7 8. dxc5 Nba6 9. Qc2 O-O 10. a3 b6 11. cxb6 axb6 12. Be2 Bd7 13. Nc4 {½-½ Votruba,P (2146)-Nehls,B (2066) Regionalliga Nord-Ost 1718 2017 (3.3)}) 7. e4 {[%emt 0:00:34] OK} O-O {[%emt 0:01:07] OK} 8. Bc4 $1 {[%emt 0:00:24][%cal Oe1g1] Sterk} Bg4 {[%emt 0:12:33] Onnauwkeurig} 9. O-O {[%emt 0:04:00] Hoopt vervolgens op Re1. OK} Nbd7 {[%emt 0:00:25] OK} 10. Re1 $1 {[%emt 0:07:51] Sterk} Ne5 {[%emt 0:03:04]} 11. Qb3 {[%emt 0:01:24] OK} Nxc4 {[%emt 0:09:04] OK} 12. Nxc4 {[%emt 0:07:24] Fout (0.5)} (12. Qxc4 $11 e6 13. d6) {Zwart zou moeten spelen} 12... e6 {[%emt 0:16:23] Fout (0.8)} (12... Bxf3 $1 $15 13. Qxf3 Rc8) 13. Nce5 {[%emt 0:26:29]} Bxf3 $1 {[%emt 0:05:34] Sterk} 14. Nxf3 {[%emt 0:00:17]} exd5 {[%emt 0:00:11] OK} 15. e5 {[%emt 0:01:49] OK} Ne4 {[%emt 0:00:20] Voorkomt Bg5. OK} 16. Qxb7 {[%emt 0:00:51] Fout (0.7)} (16. Rd1 $1 $11) 16... Re8 $1 $15 {[%emt 0:03:50] Sterk} 17. Rd1 {[%emt 0:17:24] Fout (0.8)} (17. Qb3 $11) {Zwart zou moeten proberen} 17... Rxe5 {[%emt 0:24:38] Fout (1.4)} (17... Bxe5 $17 18. Nxe5 Rxe5) 18. Nxe5 $14 {[%emt 0:06:16]} Bxe5 {[%emt 0:00:05]} 19. g3 $1 {[%emt 0:04:13] Sterk} Rb8 {[%emt 0:03:42]} {Wit zou moeten spelen} 20. Qa6 {[%emt 0:00:32] Fout (0.6)} (20. Qxa7 $16 {Sterke dreiging met f3.} Qf6 21. f3 Nxg3 (21... Qxf3 $2 {vergaat.} 22. Rf1 $18) 22. hxg3 Qxf3 23. Rd2 Qxg3+ 24. Kf1 Qh3+ 25. Rg2 Qh1+ 26. Kf2) 20... Qd7 {[%emt 0:05:08] blijft gelijk. Fout (0.8)} (20... h5 $11) {Wit zou moeten proberen} 21. Qf1 {[%emt 0:00:40] Fout (0.9)} (21. f3 $16) 21... Qf5 {[%emt 0:01:03] Onnauwkeurig} 22. f3 {[%emt 0:09:44] Beste (Gemakkelijk)} Nc5 {[%emt 0:00:15] [#] OK} 23. b4 $1 {[%emt 0:00:49] OK} Rxb4 {[%emt 0:05:10] OK} (23... Na4 24. Qd3) 24. Ba3 {[%emt 0:00:12] Beste (Gemakkelijk)} Rc4 {[%emt 0:00:08] OK} 25. Bxc5 {[%emt 0:04:35]} Rxc5 {[%emt 0:00:05]} 26. Rac1 {[%emt 0:03:28] OK} Rc3 {[%emt 0:02:08] OK} 27. Rxc3 {[%emt 0:00:20] OK} dxc3 {[%emt 0:00:04]} 28. Rxd5 $11 {[%emt 0:00:03][%mdl 4096] [#] Eindspel. Zwart moet nu f4 voorkomen. KQR-KQB. Beste (Gemakkelijk)} c2 {[%emt 0:00:20] Is te verkiezen. Fout (0.5)} (28... Qe6 $11 29. Qc4 Bd6) 29. Qc4 $14 {[%emt 0:03:12] Dreigt te winnen met Kg2. OK} Qxf3 {[%emt 0:02:36] OK} 30. Rd8+ {[%emt 0:00:08] Beste (Gemakkelijk)} (30. Rxe5 $2 {slaat de verkeerde figuur.} Qd1+ 31. Kg2 c1=Q $19 (31... c1=R 32. Re8+ Kg7 33. Qb5 $19)) 30... Kg7 {[%emt 0:00:02]} 31. Qxc2 {[%emt 0:00:10] Beste (Gemakkelijk)} Qe3+ $1 {[%emt 0:01:37] Sterk. De stelling is in evenwicht.} 32. Qf2 {[%emt 0:00:37]} Qc1+ {[%emt 0:00:04] OK} 33. Kg2 {[%emt 0:00:51][%cal Od8d2] OK} Qc6+ {[%emt 0:00:36] Beste (Gemakkelijk)} 34. Qf3 {[%emt 0:00:11] OK} Qc2+ {[%emt 0:00:04] OK} 35. Qf2 {[%emt 0:00:08]} Qc6+ {[%emt 0:00:09]} 36. Qf3 {[%emt 0:00:11] OK} Qc2+ {[%emt 0:00:26] Blunder waarde: Wit=0.17 (erg precies) /Zwart=0.16 (erg precies) . Beste (Gemakkelijk).  Fout:        	Wit=5      	Zwart=4      Onnauwkeurig:    	---       	Zwart=2      OK:         	Wit=11     	Zwart=13     Beste:        	Wit=5      	Zwart=2      Sterk:        	Wit=3      	Zwart=3} 1/2-1/2